bitfinex-derivatives/quotes_ETHF0:USTF0_20251009
["timestamp","ask_amount","ask_price","bid_price","bid_amount"]
[1760018597401,0.65989,4347.2,4346.5,0.9231]
[1760018597402,0.41395,4346.6,4346.5,0.9231]
[1760018597598,0.65895,4346.6,4346.5,0.9231]
[1760018598095,1.03475,4347.2,4347.0,0.3844]
[1760018598096,0.4139,4347.2,4347.0,0.3844]
[1760018598296,0.00251679,4347.4,4347.1,0.9231]
[1760018598496,0.246,4347.3,4347.1,1.33699]
[1760018598697,0.246,4347.3,4347.2,0.9231]
[1760018599303,0.00251679,4347.4,4347.2,5.9231]
[1760018599503,0.246,4347.3,4347.2,5.9231]
[1760018599704,0.00251679,4347.4,4347.3,5.41388]
[1760018599900,3.2078,4348.0,4347.9,0.9231]
[1760018600098,3.4528,4348.0,4347.9,0.9231]
[1760018600294,3.4528,4348.0,4347.9,41.7231]
[1760018600505,3.4528,4348.0,4347.9,42.13692]
[1760018600797,3.20995041,4348.0,4347.9,0.9231]
[1760018600999,3.45495041,4348.0,4347.9,0.9231]
[1760018601506,0.4139,4347.1,4347.0,1.3075]
[1760018601705,0.6599,4347.1,4347.0,1.19499043]
[1760018603101,3.2078,4347.5,4347.0,0.27189043]
[1760018603307,0.246,4347.4,4347.1,0.9231]
[1760018603703,0.4139,4347.2,4347.1,0.9231]
[1760018605001,3.2078,4347.5,4347.1,0.9231]
[1760018605208,0.245,4347.4,4347.1,0.9231]
[1760018605398,0.245,4347.4,4347.0,3.47969043]
[1760018605399,3.2078,4348.1,4347.7,0.9231]
[1760018605598,3.2078,4348.6,4347.9,0.9231]
[1760018605803,0.24815041,4348.0,4347.9,0.9231]
[1760018606899,3.2078,4348.6,4348.4,0.9231]
[1760018607099,0.246,4348.5,4348.4,0.9231]
[1760018607297,3.2078,4349.2,4348.8,0.3844]
[1760018607501,0.41366,4349.6,4349.5,0.9231]
[1760018607905,0.00218432,4349.6,4349.5,0.92475557]
[1760018608108,0.24818432,4349.6,4349.5,0.92475557]
[1760018609302,0.00218432,4349.6,4349.5,0.92475557]
[1760018609603,0.24718432,4349.6,4349.5,0.92475557]
[1760018611412,0.1839,4350.1,4350.0,1.3075]
[1760018611609,0.1839,4350.1,4350.0,1.72112]
[1760018611815,0.245,4350.5,4350.4,0.41358]
[1760018612007,0.245,4350.5,4350.4,42.13668]
[1760018612209,3.2078,4351.5,4351.1,0.9231]
[1760018612413,0.4135,4351.3,4351.1,0.9231]
[1760018612817,0.00207823,4351.5,4351.3,0.41349]
[1760018613109,3.2078,4352.0,4351.4,0.9231]
[1760018613315,3.4528,4352.5,4352.4,1.3075]
[1760018614116,3.86619,4352.5,4352.4,1.3075]
[1760018614312,3.86835565,4352.5,4352.4,1.3075]
[1760018614810,3.62335565,4352.5,4352.4,1.3075]
[1760018615018,0.00216565,4352.5,4352.4,1.3075]
[1760018615713,0.41554565,4352.5,4352.4,1.3075]
[1760018616112,0.41554565,4352.5,4352.4,42.1075]
[1760018616618,3.62334565,4352.5,4352.4,1.3075]
[1760018617008,0.65954565,4352.5,4352.4,1.3075]
[1760018617211,0.41554565,4352.5,4352.4,1.3075]
[1760018617406,0.65954565,4352.5,4352.4,1.3075]
[1760018617815,0.41554565,4352.5,4352.4,1.3075]
[1760018618014,0.00216565,4352.5,4352.4,1.3075]
[1760018618219,0.24616565,4352.5,4352.4,1.3075]
[1760018618914,0.00216565,4352.5,4352.4,1.3075]
[1760018619111,0.24616565,4352.5,4352.4,1.3075]
[1760018619313,0.00216565,4352.5,4352.4,1.3075]
[1760018619509,3.45396565,4352.5,4352.4,1.3075]
[1760018619910,3.20996565,4352.5,4352.4,1.3075]
[1760018620114,3.45396565,4352.5,4352.4,1.3075]
[1760018620323,3.20996565,4352.5,4352.4,1.3075]
[1760018620815,3.45396565,4352.5,4352.4,1.3075]
[1760018621206,3.20996565,4352.5,4352.4,1.3075]
[1760018621413,0.24616565,4352.5,4352.4,1.3075]
[1760018622212,0.022,4352.9,4352.8,0.41336]
[1760018622414,0.266,4352.9,4352.8,1.33646]
[1760018622917,0.1837,4353.3,4353.2,0.9684]
[1760018623113,0.4277,4353.3,4353.2,4.1762]
[1760018623325,0.4277,4353.3,4353.0,0.3875]
[1760018623326,0.41333,4353.1,4353.0,0.3875]
[1760018623615,5.41333,4353.1,4353.0,1.3559]
[1760018624019,0.00234183,4353.3,4353.1,0.9684]
[1760018624220,0.245,4353.2,4353.1,0.9684]
[1760018624726,0.00234183,4353.3,4353.1,0.97002188]
[1760018625114,0.245,4353.2,4353.1,1.38334188]
[1760018625420,0.00234183,4353.3,4353.2,0.9941]
[1760018626518,0.00234183,4353.3,4353.2,5.9941]
[1760018627312,1.033,4354.5,4353.2,5.9941]
[1760018627313,3.3915,4354.0,4353.9,0.9941]
[1760018627517,2.93767052,4354.0,4353.9,0.9941]
[1760018627715,3.2078,4354.6,4354.5,1.3924]
[1760018627918,3.4528,4354.6,4354.5,1.8056]
[1760018628317,3.2098212,4354.6,4354.5,1.8056]
[1760018628516,3.4548212,4354.6,4354.5,1.8056]
[1760018628715,3.2078,4355.1,4354.5,1.8056]
[1760018629013,3.2078,4355.1,4355.0,1.3924]
[1760018629014,3.62094,4355.1,4355.0,1.3924]
[1760018629222,3.86594,4355.1,4355.0,1.3924]
[1760018629822,3.8685461,4355.1,4355.0,1.3924]
[1760018630020,3.6235461,4355.1,4355.0,1.3924]
[1760018630223,3.8685461,4355.1,4355.0,1.3924]
[1760018631119,0.41318,4354.7,4354.5,0.3983]
[1760018631329,0.4132,4354.5,4354.0,0.3983]
[1760018631520,0.41322,4354.2,4354.1,0.9941]
[1760018631713,3.86702,4354.2,4354.1,0.9941]
[1760018631918,3.62102,4354.2,4354.1,0.9941]
[1760018632116,8.86702,4354.2,4354.1,0.9941]
[1760018633116,3.2078,4354.2,4354.1,0.9941]
[1760018633323,3.4538,4354.2,4354.1,0.9941]
[1760018634225,3.2078,4354.2,4354.1,0.9941]
[1760018634422,3.2078,4354.7,4354.6,0.9941]
[1760018634725,0.0026061,4355.1,4355.0,0.3983]
[1760018635017,0.0026061,4355.1,4355.0,1.3924]
[1760018635919,0.0026061,4355.1,4354.1,0.9941]
[1760018635920,0.41322,4354.2,4354.1,0.9941]
[1760018636121,3.86702,4354.2,4354.1,0.9941]
[1760018636322,4.4094329,4354.2,4354.1,0.9941]
[1760018637419,4.1634329,4354.2,4354.1,0.9941]
[1760018637617,4.4124329,4354.2,4354.1,0.9941]
[1760018638514,4.4124329,4354.2,4354.1,0.52915]
[1760018639314,4.1634329,4354.2,4354.1,0.52915]
[1760018639518,4.4124329,4354.2,4354.1,0.52915]
[1760018639737,0.41328,4353.6,4353.5,0.3983]
[1760018639924,4.4124929,4353.6,4353.5,0.3983]
[1760018640219,3.9992129,4353.6,4353.1,0.00162188]
[1760018640422,0.41341,4352.2,4352.0,0.3983]
[1760018640616,1.03338,4352.9,4351.5,0.3983]
[1760018640617,4.00119661,4352.1,4351.5,0.3983]
[1760018640823,0.41347,4351.7,4351.5,0.3983]
[1760018641027,3.4568,4351.6,4351.5,0.3983]
[1760018641327,3.99952805,4351.6,4351.5,0.40030731]
[1760018641927,3.99952805,4351.6,4351.5,1.39440731]
[1760018642421,3.75052805,4351.6,4351.5,1.39440731]
[1760018642617,0.00251645,4351.6,4351.5,6.39440731]
[1760018643220,0.41341,4352.3,4352.1,0.9941]
[1760018643422,0.41338,4352.6,4352.5,1.3924]
[1760018643934,0.5360793,4352.6,4352.5,1.3924]
[1760018644117,0.25159128,4352.6,4352.5,6.3924]
[1760018644728,3.2078,4353.4,4353.0,0.3983]
[1760018644930,0.53618193,4353.3,4353.1,0.9941]
[1760018645123,1.19850193,4353.2,4353.1,0.9941]
[1760018645436,0.53618193,4353.2,4353.1,0.9941]
[1760018645929,0.00161941,4353.2,4353.1,0.9941]
[1760018646130,0.00161941,4353.2,4353.1,5.9941]
[1760018646324,0.66293941,4353.2,4353.1,5.9941]
[1760018646540,0.66293941,4353.2,4352.5,41.1983]
[1760018646541,0.41338,4352.6,4352.5,1.3924]
[1760018646829,0.41342,4352.1,4352.0,1.3924]
[1760018647027,1.19853222,4352.1,4352.0,1.3924]
[1760018647233,4.40633222,4352.1,4352.0,1.3924]
[1760018647426,0.94953222,4352.1,4352.0,1.3924]
[1760018647620,3.2078,4352.6,4352.5,1.3924]
[1760018647831,3.99290221,4352.6,4352.5,1.3924]
[1760018648035,0.41342,4352.1,4352.0,42.1924]
[1760018648225,0.66242,4352.1,4352.0,1.3924]
[1760018648629,0.249,4352.1,4352.0,1.3924]
[1760018649031,0.4134,4352.4,4352.1,0.9941]
[1760018649329,0.41341,4352.3,4352.1,0.9941]
[1760018649529,0.41341,4352.3,4352.0,0.3983]
[1760018649530,0.41342,4352.1,4352.0,1.3924]
[1760018649733,0.41342,4352.1,4351.3,3.2307]
[1760018649734,0.41347,4351.6,4351.5,1.39440731]
[1760018649926,0.66247,4351.6,4351.5,1.39440731]
[1760018650125,0.41346,4351.8,4351.5,1.39440731]
[1760018650324,0.41347,4351.6,4351.5,1.39440731]
[1760018651054,0.66247,4351.6,4351.5,1.39440731]
[1760018651233,0.41345,4351.8,4351.5,1.39440731]
[1760018651433,0.248,4351.7,4351.5,0.40030731]
[1760018651633,0.41345,4351.8,4351.6,0.9941]
[1760018651929,0.41341,4352.3,4352.1,0.9941]
[1760018652132,0.248,4352.2,4352.1,0.9941]
[1760018652730,3.2078,4352.6,4352.5,1.3082]
[1760018653030,3.20941941,4353.2,4353.0,0.3952]
[1760018653239,0.248,4353.1,4353.0,1.3082]
[1760018653530,3.20941941,4353.2,4353.0,1.3082]
[1760018653736,3.20941941,4353.2,4353.1,0.913]
[1760018654123,3.2078,4354.0,4353.5,0.3952]
[1760018654329,0.41328,4353.7,4353.5,0.3952]
[1760018654526,4.24092,4354.0,4353.0,0.3952]
[1760018654527,1.28122,4353.6,4353.0,0.3952]
[1760018654830,0.41332,4353.2,4353.0,0.3952]
[1760018655034,0.248,4353.1,4353.0,1.3082]
[1760018655335,0.00171401,4353.1,4353.0,1.3082]
[1760018658936,0.00171401,4353.1,4352.7,0.9359]
[1760018659131,0.41336,4352.8,4352.7,0.9359]
[1760018659334,0.66136,4352.8,4352.7,0.9359]
[1760018659936,0.66136,4352.8,4352.7,0.0229]
[1760018660327,0.66136,4352.8,4352.7,0.9359]
[1760018661831,0.00171401,4353.1,4352.8,0.913]
[1760018662136,0.41504401,4353.1,4353.0,1.3082]
[1760018662535,0.24971401,4353.1,4353.0,1.3082]
[1760018662733,0.00171401,4353.1,4353.0,1.3082]
[1760018664032,3.2078,4354.0,4353.5,0.3952]
[1760018664231,0.41327,4353.7,4353.6,4.1208]
[1760018664632,3.2078,4355.0,4354.0,0.3952]
[1760018664938,3.4548,4355.0,4354.6,0.913]
[1760018665138,3.4548,4355.0,4354.6,0.91463338]
[1760018665139,0.00259137,4355.0,4354.6,0.91463338]
[1760018665343,0.00259137,4355.0,4354.9,0.913]
[1760018666231,0.41312,4355.3,4355.1,0.913]
[1760018666436,4.24037,4356.3,4355.0,0.80835]
[1760018666437,0.41311,4355.5,4355.3,0.913]
[1760018666742,0.41303,4356.2,4356.1,0.913]
[1760018666940,0.66003,4356.2,4356.1,0.913]
[1760018667135,0.66270083,4356.2,4356.1,0.913]
[1760018667638,0.00267083,4356.2,4356.1,0.913]
[1760018668634,3.2078,4358.0,4357.5,0.3952]
[1760018668835,0.247,4357.9,4357.5,0.3952]
[1760018669036,0.41289,4357.7,4357.6,0.913]
[1760018669540,0.41475079,4357.7,4357.6,0.913]
[1760018670041,0.00186079,4357.7,4357.6,0.913]
[1760018673444,0.41285,4358.2,4358.0,0.3952]
[1760018673652,0.65883,4358.4,4358.2,0.913]
[1760018673848,0.65883,4358.4,4358.1,3.2078]
[1760018673849,0.0852,4358.5,4358.4,1.32583]
[1760018674149,0.41275,4359.2,4359.1,0.913]
[1760018674345,0.4128,4358.7,4358.5,0.3952]
[1760018674646,0.41483672,4358.7,4358.6,41.713]
[1760018674846,0.66083672,4358.7,4358.6,41.713]
[1760018675440,3.2078,4359.6,4358.6,4.1208]
[1760018675643,3.62051,4359.6,4359.5,1.3082]
[1760018675843,0.41276,4359.1,4359.0,1.3082]
[1760018676439,0.00245052,4359.1,4359.0,1.3082]
[1760018677251,0.00245052,4359.1,4359.0,4.516]
[1760018677946,0.00245052,4359.1,4359.0,3.2078]
[1760018678154,0.41281,4358.6,4358.5,1.310539]
[1760018678352,3.86661,4358.6,4358.5,1.310539]
[1760018678548,8.86661,4358.6,4358.5,1.310539]
[1760018680451,0.41285,4358.2,4357.5,0.3952]
[1760018680751,3.2078,4358.9,4358.5,0.3952]
[1760018680956,0.41281,4358.6,4358.5,0.3952]
[1760018681145,3.2078,4358.9,4358.5,0.3952]
[1760018681342,0.248,4358.8,4358.5,0.39759034]
[1760018681654,3.2078,4358.9,4358.5,0.39759034]
[1760018681848,0.41521052,4359.1,4358.5,0.39759034]
[1760018681849,0.66079,4358.8,4358.5,0.39759034]
[1760018682049,0.248,4358.8,4358.5,0.39759034]
[1760018682444,0.248,4358.8,4358.6,0.9698]
[1760018682651,0.41279,4358.8,4358.6,0.9698]
[1760018683046,0.41281,4358.6,4358.5,1.36739034]
[1760018683354,0.4129,4357.6,4357.5,1.3735]
[1760018683550,0.41295,4357.1,4357.0,1.365]
[1760018683758,0.66295,4357.1,4357.0,1.365]
[1760018684055,8.87075,4357.1,4357.0,0.3952]
[1760018684352,36.84319,4357.9,4357.0,0.39809661]
[1760018684353,3.2078,4357.6,4357.0,0.39809661]
[1760018684550,3.2078,4357.6,4357.5,1.3179]
[1760018684750,3.4578,4357.6,4357.5,1.3179]
[1760018684962,0.25,4357.6,4357.5,1.3179]
[1760018685551,0.4129,4357.7,4357.5,1.3179]
[1760018685751,0.25,4357.6,4357.5,1.3179]
[1760018685951,0.4129,4357.7,4357.5,1.3179]
[1760018685952,0.1812,4357.9,4357.6,0.9186]
[1760018686149,0.4129,4357.7,4357.6,0.9186]
[1760018686653,0.1812,4357.9,4357.6,0.9186]
[1760018686951,0.66289,4357.8,4357.6,0.9186]
[1760018687155,0.25,4357.8,4357.6,0.9186]
[1760018687753,0.66289,4357.8,4357.6,0.9186]
[1760018687945,0.66289,4357.8,4357.5,1.3179]
[1760018687946,0.4129,4357.6,4357.5,1.3179]
[1760018689254,0.41289,4357.7,4357.6,0.9186]
[1760018694056,0.25,4357.8,4357.6,0.9186]
[1760018694258,0.41283,4358.3,4358.1,0.9186]
[1760018694459,0.249,4358.2,4358.1,0.9186]
[1760018694761,0.78375608,4358.2,4358.1,0.9186]
[1760018695360,0.78424371,4358.2,4358.1,0.9186]
[1760018696155,0.4129,4357.7,4357.6,0.9186]
[1760018696351,0.53524371,4357.7,4357.6,0.9186]
[1760018696561,0.53524371,4357.8,4357.6,0.9186]
[1760018696853,0.249,4358.0,4357.8,0.9186]
[1760018697056,3.3886,4358.4,4357.8,0.9186]
[1760018697353,0.1808,4358.4,4358.2,0.9186]
[1760018697861,0.59363,4358.4,4358.2,0.9186]
[1760018698054,0.1808,4358.4,4358.2,0.9186]
[1760018698256,0.00245052,4359.1,4358.1,3.2078]
[1760018698257,0.41278,4358.9,4358.5,0.41281]
[1760018698456,0.53652469,4358.8,4358.7,4.1264]
[1760018698758,0.00245052,4359.1,4359.0,1.3179]
[1760018699056,0.53906688,4359.1,4359.0,1.3179]
[1760018699262,0.00245052,4359.1,4359.0,1.3179]
[1760018699654,0.41521052,4359.1,4359.0,42.1179]
[1760018699854,0.00245052,4359.1,4359.0,42.1179]
[1760018700560,0.249,4359.5,4359.1,0.9186]
[1760018700761,0.53655275,4359.4,4359.3,1.33133]
[1760018701055,0.53655275,4359.4,4359.3,0.9186]
[1760018701556,0.53901907,4359.4,4359.3,0.9186]
[1760018701757,0.00246632,4359.4,4359.3,0.9186]
[1760018702057,3.2078,4360.2,4360.0,0.3993]
[1760018702262,3.2078,4360.2,4360.1,0.9186]
[1760018702451,0.41265,4360.3,4360.1,1.33126]
[1760018702658,0.41261,4360.7,4360.5,0.3993]
[1760018702962,0.41257,4361.1,4361.0,0.3993]
[1760018703161,0.41512939,4361.1,4361.0,0.3993]
[1760018703362,0.41512939,4361.1,4361.0,1.3179]
[1760018703662,0.00255939,4361.1,4361.0,1.3179]
[1760018703863,0.00255939,4361.1,4361.0,42.1179]
[1760018704258,0.248,4361.8,4361.6,0.9186]
[1760018704568,0.41247,4362.2,4362.1,0.9186]
[1760018704861,0.66047,4362.2,4362.1,0.9186]
[1760018705264,0.66301779,4362.2,4362.1,0.9186]
[1760018705568,0.00254779,4362.2,4362.1,0.9186]
[1760018706067,0.00254779,4362.2,4362.1,41.7186]
[1760018706265,3.2298,4362.9,4362.5,0.41243]
[1760018706468,0.41242,4362.8,4362.6,0.9186]
[1760018706666,0.022,4362.9,4362.6,0.9186]
[1760018707064,0.022,4362.9,4362.6,1.33102]
[1760018707268,0.022,4362.9,4362.7,0.9186]
[1760018707474,0.02486357,4362.9,4362.7,1.33102]
[1760018707672,0.02486357,4362.9,4362.8,0.9186]
[1760018708276,0.02486357,4362.9,4362.8,42.13101]
[1760018708477,3.62014,4363.6,4363.5,0.3993]
[1760018708675,3.86714,4363.6,4363.5,1.3179]
[1760018709281,3.2078,4364.4,4364.1,0.9186]
[1760018709578,3.2078,4364.4,4364.3,0.9186]
[1760018709579,3.21070855,4364.4,4364.3,0.9186]
[1760018709877,3.61999,4365.2,4365.0,1.3179]
[1760018710080,0.247,4365.2,4365.1,0.9186]
[1760018710270,0.41215,4365.6,4365.5,1.3179]
[1760018710581,0.65915,4365.6,4365.5,1.3179]
[1760018710784,5.65915,4365.6,4365.5,1.3179]
[1760018711077,0.41452397,4365.6,4365.5,1.3179]
[1760018711278,0.66152397,4365.6,4365.5,1.3179]
[1760018711486,0.24937397,4365.6,4365.5,1.3179]
[1760018711779,0.00237397,4365.6,4365.5,1.3179]
[1760018711978,5.24937397,4365.6,4365.5,1.3179]
[1760018712480,5.24937397,4365.6,4365.0,0.3993]
[1760018712481,0.41219,4365.1,4365.0,0.3993]
[1760018712695,0.65919,4365.1,4365.0,0.3993]
[1760018713184,0.41224,4364.7,4364.5,0.3993]
[1760018713380,3.2078,4364.6,4364.5,0.3993]
[1760018713679,3.4548,4364.6,4364.5,0.3993]
[1760018713981,0.41219,4365.1,4365.0,0.394]
[1760018714181,0.65919,4365.1,4365.0,0.394]
[1760018714686,3.2078,4365.2,4365.1,0.9768]
[1760018715183,0.00237397,4365.6,4365.2,0.41218]
[1760018715387,1.03014,4366.6,4366.5,0.394]
[1760018715388,0.65906,4366.6,4366.5,0.394]
[1760018715683,0.65906,4366.6,4366.5,1.3708]
[1760018715883,0.247,4366.6,4366.5,42.1708]
[1760018716284,0.24966308,4366.6,4366.5,42.1708]
[1760018716482,0.24966308,4366.6,4366.5,1.3708]
[1760018717081,0.00266308,4366.6,4366.5,42.1708]
[1760018717388,0.022,4367.9,4366.5,42.1708]
[1760018717389,0.41194,4367.8,4366.6,0.9768]
[1760018717584,0.022,4367.9,4367.6,0.9768]
[1760018717984,3.2078,4368.2,4368.1,0.9768]
[1760018718281,0.00224272,4368.2,4368.1,0.97874939]
[1760018718587,0.00224272,4368.2,4368.1,41.77874939]
[1760018719983,0.00224272,4368.2,4368.1,0.97874939]
[1760018720287,0.00224272,4368.2,4368.1,1.39065939]
[1760018720480,0.00224272,4368.2,4368.1,46.77874939]
[1760018720784,0.00224272,4368.2,4368.1,47.19065939]
[1760018721095,0.41196,4367.6,4367.5,0.9768]
[1760018721286,0.41196,4367.6,4367.5,3.2078]
[1760018721583,0.412,4367.2,4367.1,0.9768]
[1760018721785,0.41196,4367.6,4367.5,0.394]
[1760018722087,0.41455664,4367.6,4367.5,4.58029263]
[1760018722987,1.96406,4366.9,4365.9,0.9768]
[1760018723283,1.96406,4366.9,4365.4,3.2078]
[1760018723284,0.41211,4366.0,4365.6,0.9768]
[1760018723587,1.02997,4367.3,4365.5,0.394]
[1760018723588,0.248,4367.0,4366.6,0.9768]
[1760018723885,0.41205,4366.6,4366.5,1.3708]
[1760018724184,0.41205,4366.6,4366.5,1.37317208]
[1760018725086,0.248,4367.0,4366.5,0.39637208]
[1760018725284,0.41204,4366.7,4366.6,0.9768]
[1760018726005,1.0303,4365.9,4365.3,3.2078]
[1760018726188,1.03037,4365.6,4364.7,0.9768]
[1760018726385,0.25,4365.8,4364.8,40.8]
[1760018726579,0.25,4365.8,4365.0,0.9768]
[1760018726580,0.4122,4365.1,4365.0,0.9768]
[1760018726889,0.4122,4365.1,4364.4,0.9768]
[1760018726890,0.41225,4364.5,4364.4,0.9768]
[1760018727086,0.41229,4364.1,4364.0,1.3708]
[1760018727288,0.25,4364.6,4364.1,0.9768]
[1760018727488,0.41226,4364.4,4364.1,0.97904738]
[1760018727684,0.41228,4364.2,4364.1,0.97904738]
[1760018728188,0.41228,4364.2,4362.3,1.03113]
[1760018728189,0.41237,4363.3,4362.3,3.2078]
[1760018728394,0.934,4364.1,4362.7,0.41241]
[1760018728395,0.249,4363.6,4362.7,0.41241]
[1760018728596,0.41234,4363.6,4363.2,0.41237]
[1760018728890,0.41235,4363.5,4363.0,0.80639]
[1760018729079,0.41236,4363.4,4363.0,0.394]
[1760018729284,3.2078,4363.9,4363.1,0.0229]
[1760018729482,3.4568,4363.9,4363.1,0.0229]
[1760018729683,3.62017,4363.3,4363.1,0.0229]
[1760018729993,3.62017,4363.3,4363.0,0.00239292]
[1760018729994,1.34638,4363.1,4363.0,0.00239292]
[1760018730288,3.2078,4363.2,4361.4,0.9768]
[1760018730289,0.41249,4362.0,4361.4,0.9768]
[1760018730593,0.41242,4362.8,4362.0,0.394]
[1760018730886,0.251,4363.2,4363.0,0.9768]
[1760018731084,0.66338,4363.2,4363.0,0.9768]
[1760018731286,0.251,4363.2,4363.0,0.9768]
[1760018731492,0.66338,4363.2,4363.0,0.00290412]
[1760018731685,0.934,4363.1,4363.0,0.00290412]
[1760018731890,4.1418,4363.1,4363.0,0.00290412]
[1760018732087,3.2078,4363.1,4363.0,0.97970412]
[1760018732285,3.4588,4363.1,4363.0,0.97970412]
[1760018732792,4.3928,4363.1,4363.0,0.00290412]
[1760018733193,3.2078,4363.1,4363.0,0.00290412]
[1760018733390,0.251,4363.1,4363.0,0.00290412]
[1760018733586,0.251,4363.1,4363.0,0.97970412]
[1760018733785,3.4588,4363.1,4363.0,0.97970412]
[1760018733985,0.251,4363.1,4363.0,0.97970412]
[1760018734199,0.251,4363.1,4362.0,0.645]
[1760018734200,0.41246,4362.4,4362.0,0.394]
[1760018734490,0.41247,4362.2,4362.1,0.9768]
[1760018734693,0.41253,4361.6,4361.2,0.9768]
[1760018734894,0.253,4361.7,4360.8,3.2078]
[1760018735097,0.41256,4361.3,4360.8,4.1846]
[1760018735298,0.41504341,4361.3,4361.2,40.8]
[1760018735794,1.34904341,4361.3,4361.2,40.8]
[1760018735996,1.34904341,4361.3,4361.2,40.8924]
[1760018736297,1.34904341,4361.3,4361.2,0.0924]
[1760018736298,6.34904341,4361.3,4361.2,0.0924]
[1760018736494,1.34659,4360.9,4360.8,0.00271153]
[1760018736698,3.4598,4360.9,4360.8,0.00271153]
[1760018736888,0.252,4360.9,4360.8,0.97951153]
[1760018737091,0.252,4361.0,4360.9,0.9768]
[1760018737397,0.00248341,4361.3,4360.9,1.38939]
[1760018737589,0.00248341,4361.3,4361.1,0.9768]
[1760018737794,0.00248341,4361.3,4360.8,0.00271153]
[1760018737989,0.934,4361.2,4360.8,0.97951153]
[1760018738192,0.934,4360.9,4360.8,0.00271153]
[1760018738389,0.934,4360.9,4359.3,0.9768]
[1760018738390,0.934,4360.5,4359.3,0.9768]
[1760018738588,3.2078,4360.2,4359.2,3.2078]
[1760018738789,3.2078,4360.2,4359.3,41.7768]
[1760018738990,0.255,4360.1,4359.3,41.7768]
[1760018739393,0.41273,4359.4,4359.3,40.8]
[1760018739599,1.34673,4359.4,4359.3,40.8]
[1760018739793,0.934,4359.9,4359.4,0.9768]
[1760018740093,0.41275,4359.3,4358.6,0.9768]
[1760018740300,0.41275,4359.3,4358.6,1.3896]
[1760018740597,0.41275,4359.3,4358.7,0.41279]
[1760018740794,0.255,4359.4,4358.8,0.41278]
[1760018741099,0.41274,4359.3,4358.8,0.41278]
[1760018741296,0.41277,4359.0,4358.6,0.00249525]
[1760018741495,0.41277,4359.0,4358.7,0.41279]
[1760018741496,0.934,4359.0,4358.7,0.41279]
[1760018741690,0.41275,4359.2,4358.8,0.9768]
[1760018741897,0.41276,4359.1,4358.8,0.9768]
[1760018742600,1.032,4358.7,4358.6,0.00249525]
[1760018742794,1.286,4358.7,4358.6,0.00249525]
[1760018743391,6.286,4358.7,4358.6,0.00249525]
[1760018744094,1.82946,4358.0,4357.9,0.0229471]
[1760018744294,5.29126,4358.0,4357.9,0.0229471]
[1760018745197,9.88092656,4358.0,4357.9,0.02563517]
[1760018745598,4.24232656,4358.0,4357.9,0.02563517]
[1760018745801,4.49632656,4358.0,4357.9,0.02563517]
[1760018746299,0.00252656,4358.0,4357.9,1.41090517]
[1760018746595,3.2078,4358.6,4358.5,1.38522]
[1760018746900,3.2078,4358.6,4358.5,1.76682]
[1760018747107,3.2078,4359.1,4359.0,0.41277]
[1760018747293,1.577,4359.2,4359.1,0.9724]
[1760018747494,0.9546,4360.0,4359.9,0.41268]
[1760018747696,1.20921506,4360.0,4359.9,0.41268]
[1760018747898,0.00161506,4360.0,4359.9,1.38508]
[1760018748202,0.00161506,4360.0,4359.9,42.18508]
[1760018748391,5.06e-06,4360.5,4360.4,1.38504]
[1760018748592,5.06e-06,4360.5,4360.4,4.59284]
[1760018748991,5.06e-06,4360.5,4360.4,9.59284]
[1760018749490,0.9546,4361.9,4361.8,0.4125]
[1760018749708,0.9546,4361.9,4361.8,0.41466519]
[1760018749709,0.95734637,4361.9,4361.8,0.41466519]
[1760018749893,0.25574637,4361.9,4361.8,0.41466519]
[1760018750299,0.00274637,4361.9,4361.8,0.41466519]
[1760018750500,0.25574637,4361.9,4361.8,0.41466519]
[1760018750894,0.00274637,4361.9,4361.8,1.38706519]
[1760018751099,1.3144,4362.2,4362.0,0.41248]
[1760018751294,0.82282,4362.2,4362.1,4.1802]
[1760018751500,0.253,4362.3,4362.2,0.41247]
[1760018751704,4.1624,4363.1,4363.0,0.41239]
[1760018752003,4.1624,4363.1,4362.1,4.23899]
[1760018752004,3.2078,4363.6,4363.4,0.41235]
[1760018752308,3.2078,4364.1,4364.0,0.4123]
[1760018752502,4.4154,4364.1,4364.0,0.4123]
[1760018752700,4.41837333,4364.1,4364.0,0.4123]
[1760018752902,1.21057333,4364.1,4364.0,0.4123]
[1760018753095,0.25597333,4364.1,4364.0,0.4123]
[1760018753299,0.00297333,4364.1,4364.0,1.3847]
[1760018753804,0.00297333,4364.1,4361.4,36.1626]
[1760018753805,0.9546,4363.9,4362.6,1.354]
[1760018754009,3.2078,4363.2,4362.6,1.354]
[1760018754200,0.255,4363.1,4362.7,0.9724]
[1760018754395,0.255,4363.1,4362.8,0.9724]
[1760018754700,3.2078,4363.2,4362.9,1.38479]
[1760018754906,0.255,4363.0,4362.9,1.38479]
[1760018755303,0.41241,4362.8,4362.0,1.354]
[1760018755503,0.41241,4362.8,4362.7,40.8]
[1760018755699,3.62021,4362.8,4362.7,40.8]
[1760018756003,3.2078,4362.8,4362.5,0.41243]
[1760018756202,0.254,4362.7,4362.5,0.9724]
[1760018756407,0.66642,4362.7,4362.0,0.3816]
[1760018756610,0.254,4362.7,4362.0,0.3816]
[1760018756804,0.254,4362.7,4362.3,0.9724]
[1760018757110,0.41248,4362.1,4361.7,0.9724]
[1760018757406,0.41248,4362.1,4360.9,3.2078]
[1760018757407,0.2549,4361.7,4360.5,0.254]
[1760018757703,3.2078,4360.8,4360.2,0.3816]
[1760018757898,3.2078,4360.3,4359.6,0.3816]
[1760018758100,0.256,4360.2,4359.6,0.3816]
[1760018758297,3.2078,4360.8,4360.3,0.41264]
[1760018758505,3.2078,4360.8,4360.3,0.41510752]